bitfinex-derivatives/quotes_BTCF0:USTF0_20210404
["timestamp","ask_amount","ask_price","bid_price","bid_amount"]
[1617548965238,0.69190655,58111.0,58110.0,4.34398278]
[1617548965438,1.69190655,58111.0,58110.0,4.34398278]
[1617548965638,1.9942412,58111.0,58110.0,4.34398278]
[1617548967041,1.69190655,58111.0,58110.0,4.34398278]
[1617548967742,1.99424302,58111.0,58110.0,4.34398278]
[1617548982656,0.99424302,58111.0,58110.0,4.34398278]
[1617548982858,1.69190655,58111.0,58110.0,4.34398278]
[1617548985764,1.99431649,58111.0,58110.0,4.34398278]
[1617548987868,2.35785595,58111.0,58110.0,4.84589249]
[1617548989566,1.99431649,58111.0,58110.0,4.84589249]
[1617548990188,1.88705994,58111.0,58110.0,4.84589249]
[1617548990397,1.78420994,58111.0,58110.0,4.84589249]
[1617548990606,0.78420994,58111.0,58110.0,6.34589249]
[1617548990970,0.4818,58111.0,58110.0,6.90714444]
[1617548991380,0.4818,58111.0,58110.0,7.04853622]
[1617548992771,0.4818,58111.0,58110.0,7.70853622]
[1617548992969,0.48079013,58111.0,58110.0,7.70853622]
[1617548993671,0.48079013,58111.0,58110.0,8.40894496]
[1617548994074,0.48079013,58111.0,58110.0,7.70853622]
[1617548994975,0.48079013,58111.0,58110.0,8.40887908]
[1617548996279,0.48079013,58111.0,58110.0,4.28283622]
[1617548996677,0.48079013,58111.0,58110.0,4.14144444]
[1617548998181,0.48079013,58111.0,58110.0,3.48144444]
[1617548999284,0.48079013,58111.0,58110.0,3.57232959]
[1617548999483,0.48079013,58111.0,58110.0,3.68797959]
[1617548999686,0.48079013,58111.0,58110.0,2.18797959]
[1617549000486,0.48079013,58111.0,58110.0,2.09709444]
[1617549000686,0.48079013,58111.0,58110.0,1.98144444]
[1617549001295,0.48079013,58111.0,58110.0,3.48144444]
[1617549001887,0.48079013,58111.0,58110.0,3.57233018]
[1617549003089,0.47978032,58111.0,58110.0,3.57233018]
[1617549005391,0.47978032,58111.0,58110.0,3.62433018]
[1617549005791,0.47978032,58111.0,58110.0,3.57233018]
[1617549009396,0.79932495,58132.0,58131.0,3.5211]
[1617549009397,0.4973,58132.0,58131.0,3.5211]
[1617549009595,0.4973,58132.0,58131.0,3.6426]
[1617549009797,0.4973,58132.0,58131.0,3.9126]
[1617549010196,0.4973,58132.0,58131.0,4.86138019]
[1617549010395,0.48392088,58132.0,58131.0,4.86138019]
[1617549011296,0.48392088,58132.0,58131.0,4.96863674]
[1617549011700,0.48392088,58132.0,58131.0,1.44753674]
[1617549011898,0.47892088,58132.0,58131.0,1.44753674]
[1617549012098,1.0,58141.0,58140.0,2.6578]
[1617549012298,0.3012951,58142.0,58140.0,2.6578]
[1617549012499,0.3012951,58142.0,58140.0,2.9278]
[1617549013099,1.0,58155.0,58141.0,0.41797355]
[1617549013100,0.30124903,58149.0,58141.0,0.41797355]
[1617549013299,0.30124903,58149.0,58148.0,1.75001655]
[1617549013501,0.30123235,58153.0,58148.0,1.81058731]
[1617549013700,0.30123235,58153.0,58148.0,1.82058731]
[1617549013901,0.30123235,58153.0,58148.0,2.17772267]
[1617549014501,0.30118688,58158.0,58152.0,1.85680656]
[1617549014903,0.30118178,58162.0,58156.0,0.35654809]
[1617549015300,0.36139806,58165.0,58161.0,0.10725655]
[1617549015301,0.30116613,58165.0,58161.0,0.10725655]
[1617549015501,0.30116613,58165.0,58161.0,0.27400655]
[1617549015701,0.30116613,58165.0,58162.0,0.01]
[1617549016101,0.10725655,58170.0,58162.0,0.01]
[1617549016102,0.30116044,58164.0,58162.0,0.01]
[1617549016501,0.36137245,58167.0,58162.0,0.01]
[1617549016502,0.30115718,58167.0,58162.0,0.01]
[1617549016701,0.30115718,58167.0,58166.0,3.634]
[1617549017101,0.30115718,58167.0,58166.0,3.904]
[1617549018605,0.3011533,58168.0,58166.0,3.904]
[1617549019203,0.3011533,58168.0,58167.0,0.10725655]
[1617549019405,1.30114695,58169.0,58167.0,0.10725655]
[1617549019603,1.30114695,58169.0,58167.0,0.37725655]
[1617549019804,0.3011463,58168.0,58167.0,0.37725655]
[1617549020204,1.3011463,58168.0,58167.0,0.37725655]
[1617549022008,1.0,58168.0,58167.0,0.37725655]
[1617549026109,1.0,58168.0,58167.0,3.17695655]
[1617549031313,0.10725655,58170.0,58167.0,3.17695655]
[1617549031314,1.0,58169.0,58167.0,3.17695655]
[1617549031714,1.0,58171.0,58167.0,0.37725655]
[1617549031915,0.50757871,58179.0,58170.0,3.5751]
[1617549032116,0.4975,58179.0,58170.0,3.5751]
[1617549032317,1.0,58177.0,58171.0,0.27]
[1617549032518,0.0514,58176.0,58171.0,0.27]
[1617549032717,1.0,58173.0,58171.0,0.27]
[1617549032916,1.0,58172.0,58171.0,0.27]
[1617549036120,0.10725655,58177.0,58171.0,0.27]
[1617549036320,1.0,58172.0,58171.0,0.27]
[1617549036520,0.4975,58179.0,58171.0,0.39208]
[1617549037321,0.32097386,58179.0,58172.0,1.5]
[1617549037523,0.32097386,58179.0,58178.0,0.10725655]
[1617549037720,0.22406392,58179.0,58178.0,0.10725655]
[1617549037921,0.22406392,58179.0,58178.0,0.11725655]
[1617549038121,0.11283651,58179.0,58178.0,0.11725655]
[1617549038364,0.11283651,58179.0,58178.0,1.61725655]
[1617549038522,0.11283651,58179.0,58178.0,0.11725655]
[1617549041826,0.11283651,58179.0,58178.0,1.61725655]
[1617549042026,1.0,58197.0,58196.0,2.4796]
[1617549042227,0.29905979,58203.0,58196.0,2.4796]
[1617549042228,1.0,58201.0,58196.0,2.6237]
[1617549042428,1.0,58201.0,58196.0,2.8937]
[1617549042828,1.0,58202.0,58196.0,2.8937]
[1617549043028,1.0,58199.0,58196.0,2.8937]
[1617549043427,1.0,58199.0,58198.0,0.10725655]
[1617549043828,1.0,58199.0,58198.0,0.37725655]
[1617549047332,1.2,58199.0,58198.0,0.37725655]
[1617549048337,1.0,58199.0,58198.0,0.37725655]
[1617549048734,1.2,58199.0,58198.0,0.37725655]
[1617549048933,1.0,58199.0,58198.0,0.37725655]
[1617549049740,1.2,58199.0,58198.0,0.37725655]
[1617549051139,1.0,58199.0,58198.0,0.37725655]
[1617549051538,1.0,58199.0,58198.0,0.37625655]
[1617549052440,1.0,58199.0,58198.0,3.70355655]
[1617549053441,1.2,58199.0,58198.0,3.70355655]
[1617549056141,0.2,58199.0,58198.0,0.37625655]
[1617549056341,1.2,58199.0,58198.0,0.37625655]
[1617549057340,1.0518,58199.0,58198.0,0.37625655]
[1617549057741,1.0,58199.0,58198.0,0.37625655]
[1617549057942,1.2,58199.0,58198.0,0.37625655]
[1617549058741,1.0,58199.0,58198.0,0.37625655]
[1617549064349,1.2,58199.0,58198.0,0.27]
[1617549064749,1.2,58199.0,58181.0,0.27]
[1617549065149,1.2,58199.0,58198.0,0.27]
[1617549065350,1.7,58199.0,58181.0,0.27]
[1617549065553,1.7,58199.0,58183.0,0.10725655]
[1617549065750,6.2,58199.0,58198.0,0.27]
[1617549065950,1.0,58184.0,58183.0,0.10725655]
[1617549066149,1.12285,58184.0,58183.0,0.10725655]
[1617549066351,1.32285,58184.0,58183.0,0.11725655]
[1617549066750,1.12285,58184.0,58183.0,0.11725655]
[1617549067553,1.23010655,58184.0,58183.0,0.11725655]
[1617549067954,1.43010655,58184.0,58183.0,0.11725655]
[1617549069962,1.23010655,58184.0,58183.0,0.11725655]
[1617549070162,1.23010655,58184.0,58183.0,0.10405655]
[1617549070355,1.23010655,58184.0,58183.0,0.10275655]
[1617549070555,1.23010655,58184.0,58183.0,0.09725655]
[1617549072456,1.53112636,58184.0,58183.0,0.09725655]
[1617549074660,1.24023742,58184.0,58183.0,0.09725655]
[1617549075159,1.23010655,58184.0,58183.0,0.09725655]
[1617549075561,1.53113624,58184.0,58183.0,0.09725655]
[1617549075861,0.53113624,58184.0,58183.0,0.09725655]
[1617549076061,1.53113624,58184.0,58183.0,0.09725655]
[1617549076260,0.53113624,58184.0,58183.0,0.09725655]
[1617549076660,1.23010655,58184.0,58183.0,0.09725655]
[1617549077462,1.53112578,58184.0,58183.0,0.09725655]
[1617549078366,0.53112578,58184.0,58183.0,0.09725655]
[1617549078567,1.53112578,58184.0,58183.0,0.01]
[1617549078765,11.04912578,58184.0,58175.0,0.35514268]
[1617549078964,11.04912578,58184.0,58170.0,0.43406328]
[1617549078965,11.41036706,58184.0,58172.0,0.35536955]
[1617549079165,11.41036706,58184.0,58176.0,0.229]
[1617549079365,0.66231807,58177.0,58171.0,0.27]
[1617549079565,6.2,58173.0,58171.0,0.2622]
[1617549079765,0.12536,58168.0,58167.0,0.346888]
[1617549079966,2.6154,58164.0,58160.0,0.4351087]
[1617549080366,2.6154,58164.0,58159.0,0.4351243]
[1617549080565,1.0,58161.0,58159.0,0.4351243]
[1617549080765,1.0,58161.0,58159.0,0.06055603]
[1617549080967,1.0,58161.0,58160.0,0.27]
[1617549081668,1.0,58161.0,58160.0,0.33055708]
[1617549081867,1.10725655,58161.0,58160.0,0.33055708]
[1617549082469,0.10725655,58161.0,58160.0,0.33055708]
[1617549082668,1.10725655,58161.0,58160.0,0.33055708]
[1617549082869,1.15925655,58161.0,58160.0,0.33055708]
[1617549084269,0.15925655,58161.0,58160.0,0.33055708]
[1617549084469,1.10725655,58161.0,58160.0,0.33055708]
[1617549087574,1.10725655,58161.0,58160.0,3.83125708]
[1617549089279,1.10725655,58161.0,58160.0,4.26620931]
[1617549089878,1.10725655,58161.0,58160.0,4.37346586]
[1617549090278,1.10725655,58161.0,58160.0,0.87276586]
[1617549090479,4.60035655,58161.0,58160.0,0.87276586]
[1617549094283,4.60035655,58161.0,58160.0,0.43781363]
[1617549095481,4.60035655,58161.0,58160.0,0.37725655]
[1617549097686,3.60035655,58161.0,58160.0,0.37725655]
[1617549097885,4.60035655,58161.0,58160.0,0.37725655]
[1617549098186,4.60035655,58161.0,58160.0,0.27]
[1617549098587,4.60035655,58161.0,58159.0,0.27]
[1617549098787,4.60035655,58161.0,58158.0,0.27]
[1617549099186,4.60035655,58161.0,58156.0,0.26]
[1617549099589,4.60035655,58161.0,58159.0,0.27]
[1617549099590,3.60035655,58161.0,58159.0,0.27]
[1617549099787,3.60035655,58161.0,58156.0,0.27]
[1617549100188,3.60035655,58161.0,58160.0,0.01]
[1617549100389,3.60035655,58161.0,58157.0,0.27]
[1617549100689,3.60035655,58161.0,58155.0,0.33056148]
[1617549100889,3.60035655,58161.0,58160.0,0.01]
[1617549101089,3.60035655,58161.0,58158.0,0.06056195]
[1617549101289,3.60035655,58161.0,58159.0,0.01]
[1617549101489,4.60035655,58161.0,58160.0,0.27]
[1617549101689,1.0,58160.0,58154.0,0.26]
[1617549101890,0.10725655,58155.0,58154.0,0.26]
[1617549102092,0.10725655,58155.0,58153.0,0.10725655]
[1617549102290,1.10725655,58155.0,58154.0,0.27]
[1617549102491,0.10725655,58155.0,58154.0,0.27]
[1617549102891,0.10725655,58155.0,58154.0,0.7050072]
[1617549103091,1.10725655,58155.0,58154.0,0.7050072]
[1617549103292,1.10725655,58155.0,58154.0,0.27]
[1617549103793,1.10725655,58155.0,58154.0,0.70494808]
[1617549105096,1.10725655,58155.0,58154.0,1.06103525]
[1617549105296,3.70085655,58155.0,58154.0,0.79103525]
[1617549105698,3.70085655,58155.0,58153.0,0.35657764]
[1617549105699,3.06784655,58155.0,58153.0,0.35657764]
[1617549105898,9.06784655,58155.0,58153.0,0.35657764]
[1617549106099,0.66271387,58154.0,58143.0,0.62707207]
[1617549106298,0.2,58153.0,58143.0,0.62707207]
[1617549106499,1.0,58144.0,58142.0,0.35716877]
[1617549106698,1.0,58144.0,58142.0,0.31516877]
[1617549106899,0.54359263,58143.0,58133.0,0.01]
[1617549107098,3.37383,58138.0,58133.0,0.01]
[1617549107301,3.37383,58138.0,58132.0,0.10725655]
[1617549107501,1.0,58134.0,58133.0,0.27]
[1617549107699,3.37383,58138.0,58133.0,0.27]
[1617549107700,0.00512009,58135.0,58133.0,0.27]
[1617549107899,0.10725655,58134.0,58130.0,0.27]
[1617549108301,0.93941876,58131.0,58129.0,0.26]
[1617549108501,0.93941876,58131.0,58128.0,0.43726741]
[1617549108700,0.93941876,58131.0,58124.0,0.10725655]
[1617549108701,1.0,58131.0,58127.0,0.43728747]
[1617549108901,1.0,58131.0,58129.0,0.27]
[1617549109101,1.0,58131.0,58124.0,0.10725655]
[1617549109102,1.0,58131.0,58128.0,0.01]
[1617549109502,1.0,58131.0,58130.0,0.27]
[1617549109702,1.0,58131.0,58126.0,0.43742731]
[1617549109904,1.0,58131.0,58127.0,0.27]
[1617549110102,1.0,58131.0,58130.0,0.27]
[1617549110303,1.0,58131.0,58126.0,0.43742731]
[1617549110504,1.0,58131.0,58127.0,0.27]
[1617549110703,1.0,58131.0,58130.0,0.27]
[1617549110904,1.0,58131.0,58126.0,0.43742731]
[1617549111103,1.0,58131.0,58127.0,0.27]
[1617549112005,1.10725655,58128.0,58127.0,0.27]
[1617549113208,1.10725655,58128.0,58125.0,0.27]
[1617549113608,1.10725655,58128.0,58127.0,0.27]
[1617549113808,1.10725655,58128.0,58125.0,0.27]
[1617549114909,1.0,58126.0,58125.0,0.27]
[1617549115107,1.14179,58126.0,58125.0,0.27]
[1617549119214,1.19329,58126.0,58125.0,0.27]
[1617549119414,1.14179,58126.0,58125.0,0.27]
[1617549126122,1.0,58126.0,58125.0,0.27]
[1617549130526,1.0509,58126.0,58125.0,0.27]
[1617549130728,1.0,58126.0,58125.0,0.27]
[1617549131527,0.10725655,58128.0,58125.0,0.27]
[1617549131726,1.0,58126.0,58125.0,0.27]
[1617549132126,1.0,58126.0,58125.0,0.62854861]
[1617549133432,1.0,58126.0,58125.0,0.27]
[1617549136435,1.10617,58126.0,58125.0,0.27]
[1617549139641,1.15807,58126.0,58125.0,0.3222]
[1617549139842,1.10617,58126.0,58125.0,0.27]
[1617549140442,1.10617,58126.0,58125.0,0.2531]
[1617549141543,0.10725655,58128.0,58125.0,0.2531]
[1617549141744,1.13915,58126.0,58125.0,0.2531]
[1617549147547,1.18995,58126.0,58125.0,0.2531]
[1617549147748,1.13915,58126.0,58125.0,0.2531]
[1617549153957,1.0,58126.0,58125.0,0.2531]
[1617549154359,3.24410086,58138.0,58125.0,0.61195047]
[1617549154360,1.0,58134.0,58125.0,0.61195047]
[1617549154558,1.0,58134.0,58127.0,3.2648]
[1617549154958,0.11737149,58138.0,58128.0,0.62864478]
[1617549154959,1.0,58135.0,58128.0,0.62864478]
[1617549155359,1.0,58137.0,58129.0,0.41914764]
[1617549155759,0.10725655,58138.0,58130.0,0.62843203]
[1617549156161,0.10725655,58138.0,58133.0,0.35808042]
[1617549156360,0.10725655,58138.0,58137.0,0.10725655]
[1617549156561,0.10725655,58138.0,58137.0,0.27647655]
[1617549156760,0.10725655,58138.0,58137.0,0.28647655]
[1617549156962,1.0,58141.0,58137.0,0.28647655]
[1617549157162,0.00510692,58146.0,58137.0,0.28647655]
[1617549157163,1.0,58138.0,58137.0,0.28647655]
[1617549157762,1.0,58138.0,58137.0,0.11725655]
[1617549158463,1.10725655,58138.0,58137.0,0.11725655]
[1617549160365,0.10725655,58138.0,58137.0,0.11725655]
[1617549160971,1.10725655,58138.0,58137.0,0.11725655]
[1617549163270,1.23385655,58138.0,58137.0,0.11725655]
[1617549165674,1.89857849,58138.0,58137.0,0.47751107]
[1617549167195,1.89857849,58138.0,58137.0,0.91771285]
[1617549167774,0.77197849,58138.0,58137.0,0.91771285]
[1617549168174,0.40941204,58138.0,58137.0,0.91771285]
[1617549171982,1.40941204,58138.0,58137.0,0.91771285]
[1617549172578,0.40941204,58138.0,58137.0,0.91771285]
[1617549173179,0.11742423,58138.0,58137.0,0.91771285]
[1617549174984,0.10725655,58138.0,58137.0,0.91771285]
[1617549175487,0.11239065,58138.0,58137.0,0.91771285]
[1617549177591,0.10725655,58138.0,58137.0,0.91771285]
[1617549177992,0.40933347,58138.0,58137.0,0.91771285]
[1617549178490,1.40933347,58138.0,58137.0,0.91771285]
[1617549179291,0.40933347,58138.0,58137.0,0.91771285]
[1617549179491,0.11742314,58138.0,58137.0,0.91771285]
[1617549180693,0.11239009,58138.0,58137.0,0.91771285]
[1617549181093,0.10725655,58138.0,58137.0,0.91771285]
[1617549183196,0.11742307,58138.0,58137.0,0.91771285]
[1617549186097,0.11239046,58138.0,58137.0,0.91771285]
[1617549187798,0.10725655,58138.0,58137.0,0.91771285]
[1617549188198,0.10937044,58138.0,58137.0,0.91771285]
[1617549189900,0.00211389,58138.0,58137.0,1.41639212]
[1617549190302,0.00211387,58140.0,58137.0,1.41639212]
[1617549190702,0.00211387,58140.0,58138.0,0.06057581]
[1617549190703,0.00211387,58139.0,58138.0,0.06057581]
[1617549191101,0.00211387,58139.0,58138.0,0.82896053]
[1617549191501,0.00211385,58140.0,58138.0,0.82896053]
[1617549191701,0.00211385,58140.0,58138.0,1.62591682]
[1617549192001,0.00211385,58139.0,58138.0,0.27]
[1617549192401,0.00211385,58139.0,58138.0,1.06703822]
[1617549195908,0.00211385,58139.0,58138.0,1.5653497]
[1617549198514,2.77838,58139.0,58138.0,1.06703822]
[1617549198917,2.78351463,58139.0,58138.0,0.27]
[1617549199318,2.78351463,58139.0,58138.0,1.06714854]
[1617549200120,2.78049425,58139.0,58138.0,1.06714854]
[1617549200819,0.11919425,58139.0,58138.0,1.06714854]
[1617549201020,0.00211425,58139.0,58138.0,1.56523379]
[1617549204326,0.00513465,58139.0,58138.0,1.06714854]
[1617549205629,0.00513465,58139.0,58138.0,0.62861124]
[1617549206229,0.30263104,58139.0,58138.0,1.56646431]
[1617549207029,0.30263104,58139.0,58138.0,0.76885802]
[1617549207430,0.30263104,58139.0,58138.0,1.56696617]
[1617549213838,0.30263104,58139.0,58138.0,0.76885802]
[1617549214039,0.30263104,58139.0,58138.0,1.12818516]
[1617549214238,0.30263104,58139.0,58138.0,1.56735505]
[1617549217342,0.66576328,58139.0,58138.0,1.06849703]
[1617549219245,0.90806825,58139.0,58138.0,1.06849703]
[1617549220564,0.66576328,58139.0,58138.0,1.56762222]
[1617549220958,0.66576328,58139.0,58138.0,1.06849703]
[1617549223245,0.66576328,58139.0,58138.0,1.11999703]
[1617549223949,0.66576328,58139.0,58138.0,1.23772703]
[1617549225149,0.66576328,58139.0,58138.0,1.18622703]
[1617549226249,0.66576328,58139.0,58138.0,1.06849703]
[1617549226951,0.66576328,58139.0,58138.0,1.56777112]
[1617549228152,0.66576328,58139.0,58138.0,1.06849703]
[1617549233355,0.66576328,58139.0,58138.0,1.56795378]
[1617549234157,0.66576328,58139.0,58138.0,1.06849703]
[1617549234557,0.90807032,58139.0,58138.0,1.06849703]
[1617549236763,3.2434,58140.0,58138.0,0.27]
[1617549237262,0.66596957,58139.0,58138.0,0.27]
[1617549237662,0.66596957,58139.0,58138.0,0.70951895]
[1617549238964,0.66596957,58139.0,58138.0,1.20887208]
[1617549240067,0.66596957,58139.0,58138.0,0.70951895]
[1617549240870,0.66596957,58139.0,58138.0,1.20890807]
[1617549241771,0.66596957,58139.0,58138.0,6.31300807]
[1617549242173,0.00211782,58141.0,58138.0,8.1041543]
[1617549242371,0.00211782,58141.0,58138.0,8.2403243]
[1617549242571,0.00211762,58146.0,58138.0,7.2403243]
[1617549242971,0.00211762,58146.0,58143.0,1.0]
[1617549243171,0.00211762,58146.0,58145.0,0.93735441]
[1617549243371,0.00211762,58146.0,58145.0,2.43735441]
[1617549243572,0.00211762,58146.0,58145.0,2.55461096]
[1617549243773,0.0051428,58147.0,58145.0,3.11285869]
[1617549243972,0.00211736,58148.0,58145.0,1.61285869]
[1617549244573,0.00211734,58147.0,58145.0,0.11725655]
[1617549244972,0.00211734,58147.0,58146.0,0.93727]
[1617549245373,0.0051421,58148.0,58146.0,0.93727]
[1617549245374,0.0051421,58148.0,58146.0,1.20727]
[1617549245773,0.01018338,58149.0,58147.0,0.93720935]
[1617549246178,0.30258522,58149.0,58148.0,1.20728221]
[1617549246573,0.30258522,58149.0,58148.0,0.93728221]
[1617549246774,0.00514221,58149.0,58148.0,0.93728221]
[1617549246973,0.00514221,58149.0,58148.0,1.20728221]
[1617549247173,0.01018351,58149.0,58148.0,1.20728221]
[1617549247378,3.43528351,58149.0,58148.0,1.20728221]
[1617549248774,0.01018351,58149.0,58148.0,1.20728221]
[1617549248975,0.01018351,58149.0,58148.0,2.70728221]
[1617549249375,0.00211729,58149.0,58148.0,2.70728221]
[1617549249776,0.0021172,58150.0,58148.0,2.79811104]
[1617549249977,0.0021172,58150.0,58148.0,5.30941104]
[1617549250377,0.00211159,58158.0,58150.0,1.5]
[1617549250776,0.00512815,58159.0,58157.0,0.43717662]
[1617549250777,0.00211155,58159.0,58157.0,0.43717662]
[1617549250976,0.00211155,58159.0,58158.0,1.5]
[1617549251177,0.00211155,58159.0,58158.0,2.20705809]
[1617549251578,0.00512804,58160.0,58158.0,2.40514006]
[1617549251579,0.00211155,58160.0,58158.0,2.40514006]
[1617549251977,0.00512804,58162.0,58158.0,2.40514006]
[1617549251978,0.00211144,58162.0,58159.0,0.52760015]
[1617549252179,0.00211144,58162.0,58160.0,1.5]
[1617549252377,0.00211144,58164.0,58161.0,0.43660843]
[1617549252581,0.00211144,58164.0,58162.0,1.5]
[1617549252777,0.00512779,58165.0,58162.0,1.5]
[1617549252778,0.00211144,58163.0,58162.0,1.9307]
[1617549253278,0.00211144,58164.0,58162.0,2.51860123]
[1617549253679,0.00211144,58164.0,58163.0,0.58786345]
[1617549254078,0.00211139,58165.0,58163.0,0.85786345]
[1617549254480,0.00512561,58165.0,58164.0,0.06054696]
[1617549254679,0.00512561,58165.0,58164.0,0.18434696]
[1617549254880,0.00211055,58165.0,58164.0,0.89079841]
[1617549255480,0.00211051,58166.0,58164.0,0.89079841]
[1617549255681,0.00211051,58166.0,58165.0,0.10725655]
[1617549256086,0.00512555,58166.0,58165.0,0.43780277]
[1617549256481,0.01015073,58166.0,58165.0,0.43780277]
[1617549256881,0.00512554,58166.0,58165.0,0.43780277]
[1617549257293,0.00211051,58166.0,58165.0,0.87447806]
[1617549257482,0.00211051,58166.0,58165.0,1.03061806]
[1617549257685,0.00211051,58167.0,58165.0,1.03061806]
[1617549258483,0.00211051,58167.0,58166.0,0.49689234]
[1617549258683,0.00211051,58167.0,58166.0,0.54899234]
[1617549258884,0.00512552,58168.0,58166.0,0.76689234]
[1617549258885,0.00211049,58168.0,58166.0,0.76689234]
[1617549259285,0.00512549,58168.0,58167.0,0.06054556]
[1617549259684,0.00512549,58168.0,58167.0,0.33054556]
[1617549259885,0.30161211,58169.0,58167.0,0.33054556]
[1617549260286,0.30161305,58168.0,58167.0,0.33054556]
[1617549260685,0.0021105,58168.0,58167.0,0.76686674]
[1617549261485,0.4596,58171.0,58167.0,0.33054556]
[1617549262085,0.46170567,58171.0,58167.0,0.27]
[1617549262487,0.46170567,58171.0,58166.0,0.27]
[1617549262687,0.46170567,58171.0,58166.0,0.62614104]
[1617549262889,0.46170567,58171.0,58168.0,0.27]
[1617549263087,0.00210567,58170.0,58167.0,0.27]
[1617549263388,0.00210567,58170.0,58169.0,0.27]
[1617549263590,0.46170567,58171.0,58169.0,0.27]
[1617549263788,0.46170567,58171.0,58167.0,0.27]
[1617549265393,0.4596,58171.0,58167.0,0.27]
[1617549265789,0.4596,58171.0,58166.0,0.27]
[1617549266191,0.46170451,58171.0,58168.0,0.27]
[1617549266392,0.46170451,58171.0,58166.0,0.27]
[1617549267596,1.46170451,58171.0,58166.0,0.27]
[1617549267994,0.00210456,58170.0,58166.0,0.27]
[1617549268892,0.46170453,58171.0,58166.0,0.27]
[1617549269291,0.0509,58170.0,58166.0,0.27]
[1617549269693,0.46170453,58171.0,58166.0,0.27]
[1617549270995,0.46170456,58171.0,58166.0,0.27]
[1617549272699,0.4596,58171.0,58166.0,0.27]
[1617549275703,0.46170394,58171.0,58166.0,0.27]
[1617549276302,0.4596,58171.0,58166.0,0.27]
[1617549277105,0.46170314,58171.0,58166.0,0.27]
[1617549277909,0.4596,58171.0,58166.0,0.27]
[1617549278411,0.46170316,58171.0,58166.0,0.27]
[1617549278608,0.46170316,58171.0,58170.0,2.8248]
[1617549278811,0.4596,58171.0,58170.0,2.8248]
[1617549279009,0.4596,58171.0,58170.0,3.0948]
[1617549282213,0.4596,58171.0,58170.0,0.27]
[1617549282414,3.0668,58171.0,58170.0,0.27]
[1617549282613,3.0668,58171.0,58166.0,0.27]
[1617549282814,3.0668,58171.0,58166.0,0.62632252]
[1617549286214,0.0518,58170.0,58166.0,0.62632252]
[1617549286415,0.0517,58169.0,58166.0,0.27]
[1617549287016,0.0517,58169.0,58168.0,2.9016]
[1617549287515,0.0517,58169.0,58168.0,3.1716]
[1617549287715,0.46170481,58171.0,58168.0,3.1716]
[1617549289323,0.4596,58171.0,58168.0,3.1716]
[1617549291824,1.4596,58171.0,58168.0,0.27]
[1617549292025,3.9289,58169.0,58168.0,0.27]
[1617549292226,3.9805,58169.0,58167.0,0.27]
[1617549292426,3.9289,58169.0,58167.0,0.27]
[1617549292627,0.30081133,58168.0,58163.0,0.27]
[1617549293044,0.30081133,58168.0,58165.0,0.27]
[1617549293257,0.00511236,58166.0,58164.0,0.27]
[1617549293645,0.00511236,58166.0,58160.0,0.01]
[1617549293646,1.00210499,58167.0,58161.0,0.35719399]
[1617549293842,0.10725655,58162.0,58161.0,0.35719399]
[1617549294037,0.10725655,58162.0,58161.0,0.36719399]
[1617549294529,0.10725655,58162.0,58161.0,0.01]
[1617549294930,0.10725655,58162.0,58161.0,0.41823446]
[1617549295329,0.10725655,58162.0,58161.0,0.68823446]
[1617549296729,0.00210644,58167.0,58161.0,4.12583446]
[1617549297329,0.00210644,58167.0,58164.0,0.35751854]
[1617549297732,0.00210644,58167.0,58165.0,0.27]
[1617549297931,0.0021063,58169.0,58166.0,0.10725655]
[1617549298332,2.97190624,58170.0,58167.0,0.07054349]
[1617549298732,2.9698,58170.0,58168.0,0.79653378]
[1617549298932,0.92922442,58171.0,58168.0,0.79653378]
[1617549299131,0.92922442,58171.0,58170.0,3.2788]
[1617549299532,0.92922442,58171.0,58170.0,3.5488]
[1617549299732,0.8688471,58171.0,58170.0,4.49658467]
[1617549300133,1.8688471,58171.0,58170.0,4.49658467]
[1617549300335,2.23122296,58171.0,58170.0,3.96773517]
[1617549300735,1.23122296,58171.0,58170.0,3.96773517]
[1617549301140,0.8688471,58171.0,58170.0,4.40578582]
[1617549301337,0.76159055,58171.0,58170.0,4.40578582]
[1617549305758,0.4697629,58171.0,58170.0,4.40578582]
[1617549307742,0.0101629,58171.0,58170.0,4.40578582]
[1617549308142,0.00211301,58171.0,58170.0,4.9057656]
[1617549308542,0.00211299,58172.0,58170.0,4.9057656]
[1617549309343,0.49011296,58174.0,58171.0,1.45282073]
[1617549309742,0.49011296,58174.0,58173.0,1.30143065]
[1617549309943,0.49011296,58174.0,58173.0,1.4086872]
[1617549310144,0.49011296,58174.0,58173.0,1.73922043]
[1617549311044,0.49313418,58174.0,58173.0,1.73922043]
[1617549312948,0.49815667,58174.0,58173.0,1.73922043]
[1617549314454,0.488,58174.0,58173.0,1.73922043]
[1617549314853,0.49011078,58174.0,58173.0,1.73922043]
[1617549315454,0.488,58174.0,58173.0,1.73922043]
[1617549315855,0.490111,58174.0,58173.0,1.73922043]
[1617549316256,0.488,58174.0,58173.0,1.73922043]
[1617549319077,0.49011075,58174.0,58173.0,1.73922043]
[1617549319561,0.49312561,58174.0,58173.0,1.23867018]
[1617549320062,0.49815011,58174.0,58173.0,1.23867018]
[1617549320464,0.49312585,58174.0,58173.0,1.23867018]
[1617549320864,0.49011107,58174.0,58173.0,1.74158254]
[1617549321265,0.488,58174.0,58173.0,1.23867018]
[1617549321664,0.488,58174.0,58173.0,1.74134675]
[1617549322063,0.488,58174.0,58173.0,1.23867018]
[1617549322965,0.488,58174.0,58173.0,1.74134024]
[1617549328774,0.488,58174.0,58173.0,1.23867018]
[1617549329177,0.488,58174.0,58173.0,1.73984688]
[1617549342392,0.6424,58174.0,58173.0,4.96944688]
[1617549342793,0.6424,58174.0,58173.0,4.46827018]
[1617549343394,0.6424,58174.0,58173.0,5.05824654]
[1617549345104,0.488,58174.0,58173.0,5.05824654]
[1617549350308,0.488,58174.0,58173.0,1.82864654]
[1617549350706,0.488,58174.0,58173.0,1.73786167]
[1617549351308,0.6056,58174.0,58173.0,1.73786167]
[1617549353209,0.6056,58174.0,58173.0,5.14676167]
[1617549353409,0.488,58174.0,58173.0,5.14676167]
[1617549353611,0.488,58174.0,58173.0,5.23754599]
[1617549356914,0.488,58174.0,58173.0,5.79771095]
[1617549357515,0.488,58174.0,58173.0,5.23754599]
[1617549357916,0.488,58174.0,58173.0,5.79784688]
[1617549358717,0.488,58174.0,58173.0,5.23754599]